[Event "Titled Tuesday Blitz November 08 Early 2022"]
[White "Bok, Benjamin"]
[Black "Safin, Robert"]
[WhiteFideId "1017063"]
[BlackFideId "34189120"]
[WhiteElo "2658"]
[BlackElo "2253"]
[Result "1/2-1/2"]
[Round "01"]
[TimeControl "180+1"]
[Date "2022.11.08"]
[WhiteClock "0:00:05"]
[BlackClock "0:00:07"]

1. d4 {[%clk 0:03:00]}  Nf6 {[%clk 0:02:54]} 2. c4 {[%clk 0:03:00]}  g6 {[%clk 0:02:54]} 3. g3 {[%clk 0:03:00]}  Bg7 {[%clk 0:02:55]} 4. Bg2 {[%clk 0:03:01]}  O-O {[%clk 0:02:55]} 5. Nf3 {[%clk 0:03:01]}  d6 {[%clk 0:02:56]} 6. Nc3 {[%clk 0:03:00]}  Nc6 {[%clk 0:02:56]} 7. O-O {[%clk 0:02:59]}  Bf5 {[%clk 0:02:57]} 8. Ne1 {[%clk 0:02:56]}  Qd7 {[%clk 0:02:56]} 9. e4 {[%clk 0:02:50]}  Bh3 {[%clk 0:02:56]} 10. f3 {[%clk 0:02:50]}  e5 {[%clk 0:02:56]} 11. d5 {[%clk 0:02:46]}  Nd4 {[%clk 0:02:50]} 12. Be3 {[%clk 0:02:44]}  Rfe8 {[%clk 0:02:47]} 13. Nc2 {[%clk 0:02:39]}  Bxg2 {[%clk 0:02:46]} 14. Kxg2 {[%clk 0:02:39]}  Nxc2 {[%clk 0:02:26]} 15. Qxc2 {[%clk 0:02:39]}  Nh5 {[%clk 0:02:26]} 16. c5 {[%clk 0:02:24]}  f5 {[%clk 0:02:15]} 17. Rac1 {[%clk 0:02:21]}  f4 {[%clk 0:02:12]} 18. Bf2 {[%clk 0:02:19]}  fxg3 {[%clk 0:02:12]} 19. hxg3 {[%clk 0:02:18]}  Bh6 {[%clk 0:02:06]} 20. Rcd1 {[%clk 0:02:12]}  Rf8 {[%clk 0:02:06]} 21. Qe2 {[%clk 0:01:46]}  a6 {[%clk 0:02:03]} 22. b3 {[%clk 0:01:20]}  Rf7 {[%clk 0:02:01]} 23. cxd6 {[%clk 0:01:13]}  cxd6 {[%clk 0:02:01]} 24. Be3 {[%clk 0:01:14]}  Bxe3 {[%clk 0:01:45]} 25. Qxe3 {[%clk 0:01:15]}  Rc8 {[%clk 0:01:45]} 26. Rc1 {[%clk 0:01:14]}  Qd8 {[%clk 0:01:15]} 27. Ne2 {[%clk 0:01:08]}  Rfc7 {[%clk 0:01:15]} 28. Rxc7 {[%clk 0:01:07]}  Rxc7 {[%clk 0:01:13]} 29. Rc1 {[%clk 0:01:07]}  Qc8 {[%clk 0:01:11]} 30. Rxc7 {[%clk 0:00:31]}  Qxc7 {[%clk 0:01:12]} 31. Qc1 {[%clk 0:00:31]}  Qxc1 {[%clk 0:01:00]} 32. Nxc1 {[%clk 0:00:32]}  Kf8 {[%clk 0:01:01]} 33. Nd3 {[%clk 0:00:32]}  Nf6 {[%clk 0:01:00]} 34. Kf2 {[%clk 0:00:30]}  Ke7 {[%clk 0:01:00]} 35. Ke3 {[%clk 0:00:30]}  Nh5 {[%clk 0:00:58]} 36. Kf2 {[%clk 0:00:24]}  Nf6 {[%clk 0:00:58]} 37. a4 {[%clk 0:00:25]}  g5 {[%clk 0:00:50]} 38. g4 {[%clk 0:00:22]}  h5 {[%clk 0:00:39]} 39. gxh5 {[%clk 0:00:21]}  Nxh5 {[%clk 0:00:40]} 40. a5 {[%clk 0:00:19]}  Nf6 {[%clk 0:00:27]} 41. Nb2 {[%clk 0:00:12]}  g4 {[%clk 0:00:27]} 42. Nc4 {[%clk 0:00:13]}  gxf3 {[%clk 0:00:27]} 43. Kxf3 {[%clk 0:00:14]}  Nh5 {[%clk 0:00:26]} 44. Kg4 {[%clk 0:00:12]}  Nf4 {[%clk 0:00:26]} 45. Ne3 {[%clk 0:00:09]}  Nd3 {[%clk 0:00:26]} 46. Kf5 {[%clk 0:00:06]}  Nc5 {[%clk 0:00:23]} 47. b4 {[%clk 0:00:06]}  Nd3 {[%clk 0:00:23]} 48. Nc2 {[%clk 0:00:07]}  Nc1 {[%clk 0:00:14]} 49. Kg4 {[%clk 0:00:03]}  Na2 {[%clk 0:00:10]} 50. Kf3 {[%clk 0:00:03]}  Nc3 {[%clk 0:00:11]} 51. Ke3 {[%clk 0:00:03]}  Nb5 {[%clk 0:00:11]} 52. Kd3 {[%clk 0:00:04]}  Kd7 {[%clk 0:00:12]} 53. Kc4 {[%clk 0:00:03]}  Nc7 {[%clk 0:00:10]} 54. Ne3 {[%clk 0:00:03]}  Ne8 {[%clk 0:00:10]} 55. Nf5 {[%clk 0:00:03]}  Nf6 {[%clk 0:00:11]} 56. Kd3 {[%clk 0:00:04]}  Nh5 {[%clk 0:00:11]} 57. Ke3 {[%clk 0:00:03]}  Nf4 {[%clk 0:00:12]} 58. Nh4 {[%clk 0:00:03]}  Nh5 {[%clk 0:00:11]} 59. Ng2 {[%clk 0:00:03]}  Ng7 {[%clk 0:00:10]} 60. Ne1 {[%clk 0:00:03]}  Ne8 {[%clk 0:00:10]} 61. Nc2 {[%clk 0:00:03]}  Nc7 {[%clk 0:00:11]} 62. Na3 {[%clk 0:00:03]}  Ne8 {[%clk 0:00:10]} 63. b5 {[%clk 0:00:04]}  Nc7 {[%clk 0:00:09]} 64. bxa6 {[%clk 0:00:04]}  Nxa6 {[%clk 0:00:10]} 65. Nc4 {[%clk 0:00:03]}  Nc5 {[%clk 0:00:10]} 66. Kf3 {[%clk 0:00:04]}  Nb3 {[%clk 0:00:10]} 67. Ke3 {[%clk 0:00:03]}  Kc7 {[%clk 0:00:10]} 68. Kf3 {[%clk 0:00:02]}  Nd4+ {[%clk 0:00:09]} 69. Kg4 {[%clk 0:00:03]}  Ne2 {[%clk 0:00:04]} 70. Ne3 {[%clk 0:00:02]}  Nc3 {[%clk 0:00:04]} 71. Kf5 {[%clk 0:00:02]}  Ne2 {[%clk 0:00:03]} 72. Ke6 {[%clk 0:00:02]}  Ng3 {[%clk 0:00:02]} 73. Nc4 {[%clk 0:00:02]}  Nxe4 {[%clk 0:00:02]} 74. Ke7 {[%clk 0:00:03]}  Kc8 {[%clk 0:00:01]} 75. Nb6+ {[%clk 0:00:02]}  Kc7 {[%clk 0:00:01]} 76. Nc4 {[%clk 0:00:03]}  Nc5 {[%clk 0:00:01]} 77. Nxd6 {[%clk 0:00:03]}  e4 {[%clk 0:00:02]} 78. Nb5+ {[%clk 0:00:03]}  Kb8 {[%clk 0:00:03]} 79. d6 {[%clk 0:00:03]}  e3 {[%clk 0:00:03]} 80. Nd4 {[%clk 0:00:03]}  Ka7 {[%clk 0:00:03]} 81. d7 {[%clk 0:00:03]}  Nxd7 {[%clk 0:00:03]} 82. Kxd7 {[%clk 0:00:04]}  Ka6 {[%clk 0:00:04]} 83. Kd6 {[%clk 0:00:05]}  Kxa5 {[%clk 0:00:05]} 84. Kc5 {[%clk 0:00:05]}  b5 {[%clk 0:00:05]} 85. Ne2 {[%clk 0:00:04]}  b4 {[%clk 0:00:05]} 86. Kd4 {[%clk 0:00:04]}  b3 {[%clk 0:00:05]} 87. Kxe3 {[%clk 0:00:05]}  Kb4 {[%clk 0:00:06]} 88. Kd2 {[%clk 0:00:05]}  b2 {[%clk 0:00:07]} 89. Nc3 {[%clk 0:00:05]}  b1=Q {[%clk 0:00:07]} 90. Nxb1 {[%clk 0:00:05]} 1/2-1/2


[Site "https://www.chess.com"]

[Event "Titled Tuesday Blitz November 08 Early 2022"]
[White "Bongo Akanga Ndjila, Barthelemy"]
[Black "Streltsov, Alexey"]
[WhiteFideId "10609431"]
[BlackFideId "24104434"]
[WhiteElo "1768"]
[BlackElo "2560"]
[Result "0-1"]
[Round "01"]
[TimeControl "180+1"]
[Date "2022.11.09"]
[WhiteClock "0:01:32"]
[BlackClock "0:02:01"]

1. d4 {[%clk 0:02:57]}  d5 {[%clk 0:03:00]} 2. c4 {[%clk 0:02:57]}  e6 {[%clk 0:03:00]} 3. Nc3 {[%clk 0:02:56]}  c6 {[%clk 0:03:00]} 4. Nf3 {[%clk 0:02:55]}  dxc4 {[%clk 0:03:00]} 5. e4 {[%clk 0:02:53]}  b5 {[%clk 0:03:00]} 6. Be2 {[%clk 0:02:52]}  Bb7 {[%clk 0:02:59]} 7. O-O {[%clk 0:02:52]}  Nd7 {[%clk 0:02:58]} 8. Re1 {[%clk 0:02:51]}  a6 {[%clk 0:02:58]} 9. Bf1 {[%clk 0:02:45]}  Ngf6 {[%clk 0:02:58]} 10. Bg5 {[%clk 0:02:44]}  Be7 {[%clk 0:02:58]} 11. g3 {[%clk 0:02:38]}  O-O {[%clk 0:02:56]} 12. Rc1 {[%clk 0:02:35]}  Re8 {[%clk 0:02:46]} 13. Bg2 {[%clk 0:02:32]}  Qb6 {[%clk 0:02:44]} 14. h3 {[%clk 0:02:29]}  Rad8 {[%clk 0:02:43]} 15. Be3 {[%clk 0:02:28]}  c5 {[%clk 0:02:43]} 16. d5 {[%clk 0:02:11]}  b4 {[%clk 0:02:37]} 17. Na4 {[%clk 0:01:59]}  Qb5 {[%clk 0:02:37]} 18. Bf1 {[%clk 0:01:46]}  exd5 {[%clk 0:02:35]} 19. exd5 {[%clk 0:01:46]}  Bxd5 {[%clk 0:02:35]} 20. Nd2 {[%clk 0:01:40]}  Ne5 {[%clk 0:02:14]} 21. Nxc4 {[%clk 0:01:33]}  Bxc4 {[%clk 0:02:08]} 22. Bxc4 {[%clk 0:01:32]}  Rxd1 {[%clk 0:02:02]} 23. Bxb5 {[%clk 0:01:32]}  Rxe1+ {[%clk 0:02:03]} 24. Rxe1 {[%clk 0:01:31]}  axb5 {[%clk 0:02:04]} 25. Nxc5 {[%clk 0:01:30]}  Nf3+ {[%clk 0:02:01]} 26. Kf1 {[%clk 0:01:31]}  Nxe1 {[%clk 0:02:01]} 27. Kxe1 {[%clk 0:01:32]}  Bxc5 {[%clk 0:02:01]} 0-1


[Site "https://www.chess.com"]

[Event "Titled Tuesday Blitz November 08 Early 2022"]
[White "Boyer, Mahel"]
[Black "Izuzquiza Gonzalez, Javier"]
[WhiteFideId "45102422"]
[BlackFideId "3101029"]
[WhiteElo "2454"]
[BlackElo "2034"]
[Result "1-0"]
[Round "01"]
[TimeControl "180+1"]
[Date "2022.11.09"]
[WhiteClock "0:00:59"]
[BlackClock "0:01:13"]

1. e4 {[%clk 0:02:59]}  c5 {[%clk 0:02:58]} 2. Nf3 {[%clk 0:02:58]}  e6 {[%clk 0:02:58]} 3. c3 {[%clk 0:02:58]}  Nf6 {[%clk 0:02:57]} 4. e5 {[%clk 0:02:58]}  Nd5 {[%clk 0:02:58]} 5. d4 {[%clk 0:02:59]}  cxd4 {[%clk 0:02:58]} 6. Qxd4 {[%clk 0:02:58]}  Nc6 {[%clk 0:02:58]} 7. Qe4 {[%clk 0:02:59]}  d6 {[%clk 0:02:58]} 8. Bb5 {[%clk 0:02:58]}  Bd7 {[%clk 0:02:53]} 9. exd6 {[%clk 0:02:59]}  Bxd6 {[%clk 0:02:51]} 10. O-O {[%clk 0:02:59]}  O-O {[%clk 0:02:50]} 11. Rd1 {[%clk 0:02:58]}  a6 {[%clk 0:02:42]} 12. Bd3 {[%clk 0:02:58]}  g6 {[%clk 0:02:41]} 13. Bh6 {[%clk 0:02:57]}  Re8 {[%clk 0:02:41]} 14. Nbd2 {[%clk 0:02:58]}  Qc7 {[%clk 0:02:34]} 15. Nc4 {[%clk 0:02:57]}  Bf8 {[%clk 0:02:31]} 16. Qh4 {[%clk 0:02:55]}  b5 {[%clk 0:02:20]} 17. Bxf8 {[%clk 0:02:30]}  Rxf8 {[%clk 0:02:15]} 18. Ng5 {[%clk 0:02:29]}  h5 {[%clk 0:02:11]} 19. Ne3 {[%clk 0:02:24]}  Qf4 {[%clk 0:02:09]} 20. Qxf4 {[%clk 0:02:21]}  Nxf4 {[%clk 0:02:09]} 21. Bxg6 {[%clk 0:02:20]}  fxg6 {[%clk 0:02:04]} 22. Rxd7 {[%clk 0:02:02]}  Ne5 {[%clk 0:02:03]} 23. Re7 {[%clk 0:01:56]}  Ned3 {[%clk 0:01:26]} 24. Ne4 {[%clk 0:01:01]}  Rae8 {[%clk 0:01:12]} 25. Rxe8 {[%clk 0:00:59]}  Rxe8 {[%clk 0:01:13]} 26. Nf6+ {[%clk 0:00:59]} 1-0


[Site "https://www.chess.com"]

[Event "Titled Tuesday Blitz November 08 Early 2022"]
[White "Ciuffoletti, Paolo"]
[Black "Al-Tarboush, Ward"]
[WhiteFideId "807630"]
[BlackFideId "7601450"]
[WhiteElo "2143"]
[BlackElo "2273"]
[Result "0-1"]
[Round "01"]
[TimeControl "180+1"]
[Date "2022.11.09"]
[WhiteClock "0:00:11"]
[BlackClock "0:01:16"]

1. e4 {[%clk 0:03:00]}  e6 {[%clk 0:02:53]} 2. d4 {[%clk 0:03:00]}  d5 {[%clk 0:02:53]} 3. e5 {[%clk 0:03:00]}  c5 {[%clk 0:02:53]} 4. c3 {[%clk 0:03:00]}  Nc6 {[%clk 0:02:53]} 5. Nf3 {[%clk 0:03:00]}  Qb6 {[%clk 0:02:52]} 6. a3 {[%clk 0:03:00]}  Nh6 {[%clk 0:02:49]} 7. b4 {[%clk 0:02:58]}  cxd4 {[%clk 0:02:49]} 8. cxd4 {[%clk 0:02:58]}  Nf5 {[%clk 0:02:49]} 9. Be3 {[%clk 0:02:58]}  Bd7 {[%clk 0:02:47]} 10. Bd3 {[%clk 0:02:56]}  Be7 {[%clk 0:02:38]} 11. Nc3 {[%clk 0:02:42]}  Nxe3 {[%clk 0:02:28]} 12. fxe3 {[%clk 0:02:41]}  f5 {[%clk 0:02:28]} 13. exf6 {[%clk 0:02:24]}  Bxf6 {[%clk 0:02:27]} 14. Na4 {[%clk 0:02:23]}  Qd8 {[%clk 0:02:26]} 15. Nc5 {[%clk 0:02:16]}  b6 {[%clk 0:02:21]} 16. Nxd7 {[%clk 0:02:02]}  Qxd7 {[%clk 0:02:22]} 17. Rc1 {[%clk 0:01:53]}  Ne7 {[%clk 0:02:15]} 18. O-O {[%clk 0:01:39]}  O-O {[%clk 0:02:14]} 19. e4 {[%clk 0:01:38]}  dxe4 {[%clk 0:02:11]} 20. Bxe4 {[%clk 0:01:37]}  Rad8 {[%clk 0:02:12]} 21. Qd3 {[%clk 0:01:30]}  Nf5 {[%clk 0:02:08]} 22. d5 {[%clk 0:01:17]}  Kh8 {[%clk 0:02:02]} 23. Rfd1 {[%clk 0:01:12]}  Qe7 {[%clk 0:01:45]} 24. Bxf5 {[%clk 0:01:04]}  Rxd5 {[%clk 0:01:43]} 25. Qe4 {[%clk 0:00:49]}  Rxf5 {[%clk 0:01:41]} 26. Nd4 {[%clk 0:00:48]}  Bxd4+ {[%clk 0:01:41]} 27. Rxd4 {[%clk 0:00:45]}  Qf6 {[%clk 0:01:40]} 28. h3 {[%clk 0:00:42]}  h6 {[%clk 0:01:36]} 29. Rcd1 {[%clk 0:00:42]}  e5 {[%clk 0:01:29]} 30. Rd6 {[%clk 0:00:41]}  Rf1+ {[%clk 0:01:25]} 31. Rxf1 {[%clk 0:00:38]}  Qxf1+ {[%clk 0:01:26]} 32. Kh2 {[%clk 0:00:38]}  Qf4+ {[%clk 0:01:21]} 33. Qxf4 {[%clk 0:00:36]}  exf4 {[%clk 0:01:22]} 34. Rd7 {[%clk 0:00:36]}  a5 {[%clk 0:01:21]} 35. bxa5 {[%clk 0:00:31]}  bxa5 {[%clk 0:01:22]} 36. Rd5 {[%clk 0:00:29]}  Ra8 {[%clk 0:01:23]} 37. a4 {[%clk 0:00:29]}  g5 {[%clk 0:01:21]} 38. Rd7 {[%clk 0:00:26]}  Rc8 {[%clk 0:01:19]} 39. Ra7 {[%clk 0:00:25]}  Rc5 {[%clk 0:01:19]} 40. Kg1 {[%clk 0:00:25]}  h5 {[%clk 0:01:18]} 41. Kf2 {[%clk 0:00:25]}  g4 {[%clk 0:01:18]} 42. hxg4 {[%clk 0:00:25]}  hxg4 {[%clk 0:01:19]} 43. Ke2 {[%clk 0:00:22]}  Rc2+ {[%clk 0:01:18]} 44. Kf1 {[%clk 0:00:21]}  Rc5 {[%clk 0:01:19]} 45. Ke2 {[%clk 0:00:21]}  Re5+ {[%clk 0:01:19]} 46. Kf2 {[%clk 0:00:20]}  Kg8 {[%clk 0:01:19]} 47. Rb7 {[%clk 0:00:18]}  Re4 {[%clk 0:01:18]} 48. Ra7 {[%clk 0:00:17]}  Rxa4 {[%clk 0:01:18]} 49. Ke2 {[%clk 0:00:14]}  Ra2+ {[%clk 0:01:18]} 50. Kf1 {[%clk 0:00:14]}  g3 {[%clk 0:01:17]} 51. Ke1 {[%clk 0:00:11]}  a4 {[%clk 0:01:16]} 0-1


[Site "https://www.chess.com"]

[Event "Titled Tuesday Blitz November 08 Early 2022"]
[White "Danielyan, Vahe"]
[Black "Zanette, Edgard Vinicius"]
[WhiteFideId "13304828"]
[BlackFideId "2109263"]
[WhiteElo "2423"]
[BlackElo "2211"]
[Result "1-0"]
[Round "01"]
[TimeControl "180+1"]
[Date "2022.11.09"]
[WhiteClock "0:00:37"]
[BlackClock "0:00:04"]

1. e4 {[%clk 0:02:59]}  c5 {[%clk 0:02:59]} 2. Nc3 {[%clk 0:02:59]}  Nc6 {[%clk 0:02:56]} 3. Bb5 {[%clk 0:02:58]}  Nd4 {[%clk 0:02:54]} 4. Bc4 {[%clk 0:02:59]}  e6 {[%clk 0:02:53]} 5. Nge2 {[%clk 0:02:59]}  Nc6 {[%clk 0:02:48]} 6. O-O {[%clk 0:02:58]}  a6 {[%clk 0:02:46]} 7. a4 {[%clk 0:02:47]}  Nf6 {[%clk 0:02:40]} 8. d4 {[%clk 0:02:46]}  cxd4 {[%clk 0:02:40]} 9. Nxd4 {[%clk 0:02:47]}  d6 {[%clk 0:02:37]} 10. Nxc6 {[%clk 0:02:31]}  bxc6 {[%clk 0:02:36]} 11. Bg5 {[%clk 0:02:25]}  Be7 {[%clk 0:02:27]} 12. Qf3 {[%clk 0:02:15]}  Rb8 {[%clk 0:02:14]} 13. Rad1 {[%clk 0:02:12]}  Qa5 {[%clk 0:02:11]} 14. Bd2 {[%clk 0:01:59]}  Qc7 {[%clk 0:01:58]} 15. Bb3 {[%clk 0:01:55]}  O-O {[%clk 0:01:55]} 16. Rfe1 {[%clk 0:01:55]}  e5 {[%clk 0:01:53]} 17. h3 {[%clk 0:01:54]}  Be6 {[%clk 0:01:51]} 18. Bxe6 {[%clk 0:01:52]}  fxe6 {[%clk 0:01:51]} 19. b3 {[%clk 0:01:52]}  g6 {[%clk 0:01:28]} 20. Qd3 {[%clk 0:01:51]}  Nh5 {[%clk 0:01:23]} 21. Qxa6 {[%clk 0:01:46]}  Nf4 {[%clk 0:01:14]} 22. Bxf4 {[%clk 0:01:42]}  exf4 {[%clk 0:01:05]} 23. Qc4 {[%clk 0:01:41]}  Qc8 {[%clk 0:00:47]} 24. Rd3 {[%clk 0:01:38]}  Rf7 {[%clk 0:00:27]} 25. a5 {[%clk 0:01:36]}  e5 {[%clk 0:00:23]} 26. a6 {[%clk 0:01:33]}  Ra8 {[%clk 0:00:21]} 27. Ra1 {[%clk 0:01:32]}  Kg7 {[%clk 0:00:21]} 28. b4 {[%clk 0:01:30]}  f3 {[%clk 0:00:19]} 29. b5 {[%clk 0:01:19]}  fxg2 {[%clk 0:00:17]} 30. Qxc6 {[%clk 0:01:13]}  Qf8 {[%clk 0:00:16]} 31. Nd1 {[%clk 0:01:08]}  Rc8 {[%clk 0:00:14]} 32. Qxc8 {[%clk 0:00:53]}  Qxc8 {[%clk 0:00:13]} 33. a7 {[%clk 0:00:54]}  Qa8 {[%clk 0:00:08]} 34. b6 {[%clk 0:00:54]}  Bh4 {[%clk 0:00:08]} 35. Rb3 {[%clk 0:00:47]}  Qxe4 {[%clk 0:00:07]} 36. a8=Q {[%clk 0:00:44]}  Qe1+ {[%clk 0:00:04]} 37. Kxg2 {[%clk 0:00:45]}  Rxf2+ {[%clk 0:00:03]} 38. Nxf2 {[%clk 0:00:42]}  Qxf2+ {[%clk 0:00:04]} 39. Kh1 {[%clk 0:00:41]}  Bg3 {[%clk 0:00:04]} 40. Qg2 {[%clk 0:00:36]}  Qxg2+ {[%clk 0:00:04]} 41. Kxg2 {[%clk 0:00:37]} 1-0


[Site "https://www.chess.com"]

[Event "Titled Tuesday Blitz November 08 Early 2022"]
[White "Darini, Pouria"]
[Black "Shapiro, Daniel"]
[WhiteFideId "12502200"]
[BlackFideId "2001780"]
[WhiteElo "2483"]
[BlackElo "2308"]
[Result "1/2-1/2"]
[Round "01"]
[TimeControl "180+1"]
[Date "2022.11.09"]
[WhiteClock "0:00:02"]
[BlackClock "0:00:35"]

1. e4 {[%clk 0:03:00]}  e5 {[%clk 0:02:59]} 2. Nf3 {[%clk 0:02:57]}  Nc6 {[%clk 0:02:56]} 3. Bc4 {[%clk 0:02:51]}  Be7 {[%clk 0:02:52]} 4. d4 {[%clk 0:02:42]}  d6 {[%clk 0:02:51]} 5. O-O {[%clk 0:02:31]}  Nf6 {[%clk 0:02:50]} 6. Re1 {[%clk 0:02:23]}  Bg4 {[%clk 0:02:41]} 7. d5 {[%clk 0:02:17]}  Nd4 {[%clk 0:02:22]} 8. Nbd2 {[%clk 0:02:17]}  c5 {[%clk 0:02:04]} 9. c3 {[%clk 0:02:12]}  Nxf3+ {[%clk 0:01:59]} 10. Nxf3 {[%clk 0:02:12]}  O-O {[%clk 0:01:54]} 11. Bf1 {[%clk 0:01:52]}  Ne8 {[%clk 0:01:53]} 12. h3 {[%clk 0:01:47]}  Bd7 {[%clk 0:01:53]} 13. Bd3 {[%clk 0:01:28]}  g6 {[%clk 0:01:52]} 14. c4 {[%clk 0:01:24]}  Ng7 {[%clk 0:01:52]} 15. Bd2 {[%clk 0:01:16]}  f5 {[%clk 0:01:51]} 16. a3 {[%clk 0:01:13]}  f4 {[%clk 0:01:44]} 17. b4 {[%clk 0:01:12]}  b6 {[%clk 0:01:43]} 18. Be2 {[%clk 0:01:06]}  g5 {[%clk 0:01:34]} 19. Nh2 {[%clk 0:01:05]}  Qe8 {[%clk 0:01:33]} 20. Bg4 {[%clk 0:01:00]}  h5 {[%clk 0:01:26]} 21. Bxd7 {[%clk 0:01:00]}  Qxd7 {[%clk 0:01:27]} 22. f3 {[%clk 0:00:51]}  Ne8 {[%clk 0:01:22]} 23. Rb1 {[%clk 0:00:50]}  Nf6 {[%clk 0:01:18]} 24. Bc3 {[%clk 0:00:45]}  Kf7 {[%clk 0:01:17]} 25. bxc5 {[%clk 0:00:45]}  bxc5 {[%clk 0:01:15]} 26. Qb3 {[%clk 0:00:17]}  Rg8 {[%clk 0:01:01]} 27. Qb7 {[%clk 0:00:17]}  Qa4 {[%clk 0:00:58]} 28. Qb5 {[%clk 0:00:10]}  Qxa3 {[%clk 0:00:42]} 29. Rb3 {[%clk 0:00:09]}  Qa2 {[%clk 0:00:36]} 30. Rb2 {[%clk 0:00:07]}  Qa3 {[%clk 0:00:36]} 31. Rb3 {[%clk 0:00:05]}  Qa2 {[%clk 0:00:35]} 32. Rb2 {[%clk 0:00:02]}  Qa3 {[%clk 0:00:35]} 33. Rb3 {[%clk 0:00:02]} 1/2-1/2


[Site "https://www.chess.com"]

[Event "Titled Tuesday Blitz November 08 Early 2022"]
[White "Degenbaev, Aziz"]
[Black "Tokhirjonova, Gulrukhbegim"]
[WhiteFideId "13802640"]
[BlackFideId "14203626"]
[WhiteElo "2039"]
[BlackElo "2236"]
[Result "1-0"]
[Round "01"]
[TimeControl "180+1"]
[Date "2022.11.09"]
[WhiteClock "0:00:15"]
[BlackClock "0:00:19"]

1. c4 {[%clk 0:03:00]}  Nf6 {[%clk 0:02:56]} 2. Nc3 {[%clk 0:03:00]}  e6 {[%clk 0:02:56]} 3. e4 {[%clk 0:02:57]}  d5 {[%clk 0:02:55]} 4. e5 {[%clk 0:02:55]}  d4 {[%clk 0:02:52]} 5. exf6 {[%clk 0:02:55]}  dxc3 {[%clk 0:02:52]} 6. bxc3 {[%clk 0:02:55]}  Qxf6 {[%clk 0:02:47]} 7. Nf3 {[%clk 0:02:55]}  Be7 {[%clk 0:02:46]} 8. Bd3 {[%clk 0:02:55]}  O-O {[%clk 0:02:45]} 9. O-O {[%clk 0:02:53]}  c5 {[%clk 0:02:45]} 10. Be4 {[%clk 0:02:53]}  Nc6 {[%clk 0:02:44]} 11. Rb1 {[%clk 0:02:50]}  Rd8 {[%clk 0:02:43]} 12. d4 {[%clk 0:02:43]}  h6 {[%clk 0:02:41]} 13. Be3 {[%clk 0:02:29]}  e5 {[%clk 0:02:24]} 14. Bxc6 {[%clk 0:02:11]}  bxc6 {[%clk 0:02:24]} 15. Nxe5 {[%clk 0:02:08]}  cxd4 {[%clk 0:01:59]} 16. cxd4 {[%clk 0:02:09]}  c5 {[%clk 0:01:59]} 17. Nf3 {[%clk 0:01:48]}  Bg4 {[%clk 0:01:59]} 18. d5 {[%clk 0:01:45]}  Bd6 {[%clk 0:01:56]} 19. h3 {[%clk 0:01:39]}  Bh5 {[%clk 0:01:56]} 20. Re1 {[%clk 0:01:12]}  Re8 {[%clk 0:01:55]} 21. Rb5 {[%clk 0:01:09]}  Re4 {[%clk 0:01:53]} 22. Nd2 {[%clk 0:00:48]}  Bxd1 {[%clk 0:01:48]} 23. Nxe4 {[%clk 0:00:48]}  Qe5 {[%clk 0:01:43]} 24. Nxd6 {[%clk 0:00:45]}  Qxd6 {[%clk 0:01:44]} 25. Rxd1 {[%clk 0:00:45]}  Rc8 {[%clk 0:01:43]} 26. g3 {[%clk 0:00:40]}  Qa6 {[%clk 0:01:40]} 27. d6 {[%clk 0:00:33]}  Qa4 {[%clk 0:01:30]} 28. Rd2 {[%clk 0:00:27]}  Qxc4 {[%clk 0:01:26]} 29. d7 {[%clk 0:00:25]}  Rd8 {[%clk 0:01:27]} 30. Rxc5 {[%clk 0:00:25]}  Qe6 {[%clk 0:01:25]} 31. Rc7 {[%clk 0:00:24]}  Kh7 {[%clk 0:01:15]} 32. Rxa7 {[%clk 0:00:22]}  Qxh3 {[%clk 0:01:11]} 33. Bb6 {[%clk 0:00:21]}  Rxd7 {[%clk 0:00:43]} 34. Rdxd7 {[%clk 0:00:22]}  Qe6 {[%clk 0:00:40]} 35. Be3 {[%clk 0:00:19]}  Qg4 {[%clk 0:00:36]} 36. a4 {[%clk 0:00:17]}  h5 {[%clk 0:00:34]} 37. Rxf7 {[%clk 0:00:16]}  Qd1+ {[%clk 0:00:34]} 38. Kg2 {[%clk 0:00:16]}  Qd5+ {[%clk 0:00:33]} 39. Kh2 {[%clk 0:00:16]}  h4 {[%clk 0:00:26]} 40. Rxg7+ {[%clk 0:00:17]}  Kh8 {[%clk 0:00:26]} 41. Rh7+ {[%clk 0:00:17]}  Kg8 {[%clk 0:00:26]} 42. Rxh4 {[%clk 0:00:16]}  Qd1 {[%clk 0:00:19]} 43. Bd4 {[%clk 0:00:15]} 1-0


[Site "https://www.chess.com"]